Cogmind - Beta 14 @@@ ROGUE MODE // 2025.04.26 @ 04:47:53 Player: Player Result: Destroyed by L-31 Rogue with Katana Performance ------------- Evolutions (1) 500 Regions Visited (2) 400 Robots Destroyed (43) 215 Value Destroyed (1200) 1200 Prototype IDs (1) 20 Alien Tech Used (0) 0 Bonus (0) 0 TOTAL SCORE: 2335 Bonus ------- None Cogmind --------- Core Integrity 0/400 Matter 275/300 Energy 95/250 System Corruption 0% Temperature Hot (220) Movement Walking (120) Location -9/Materials Parts ------- > --- POWER (1) -------- Ion Engine > --- PROPULSION (2) --- Aluminum Leg Aluminum Leg > --- UTILITY (4) ------ Small Storage Unit Signal Interpreter Improved Terrain Scanner > --- WEAPON (2) ------- Beam Rifle > --- INVENTORY (8) ---- Light Treads Aluminum Leg Visual Processing Unit Signal Interpreter Signal Interpreter Transport Network Coupler Peak State ------------ > --- POWER ------------ Improved Ion Engine > --- PROPULSION ------- Aluminum Leg Aluminum Leg > --- UTILITY ---------- Small Storage Unit Signal Interpreter Improved Terrain Scanner > --- WEAPON ----------- Beam Rifle Particle Gun > --- INVENTORY -------- Light Ion Engine Light Treads Small Storage Unit Visual Processing Unit Signal Interpreter Improved Terrain Scanner Transport Network Coupler [Rating: 14] Favorites ----------- Power Light Ion Engine Engine Light Ion Engine Propulsion Light Treads Treads Light Treads Leg Aluminum Leg Utility Small Storage Unit Device Seismic Detector Storage Small Storage Unit Processor Signal Interpreter Weapon Light Assault Rifle Energy Gun Small Laser Ballistic Gun Light Assault Rifle Special Weapon Mining Laser Build | -11 -10 -9 ------- Run | Yrd Mat Mat Slots Evolved 2 | . . 2 Power . | . . . Propulsion . | . . . Utility 2 | . . 2 Weapon . | . . . Parts Attached 39 | 7 11 21 Power 8 | 1 3 4 Engine 8 | 1 3 4 Core . | . . . Reactor . | . . . Propulsion 14 | 2 5 7 Treads 3 | 2 1 . Leg 11 | . 4 7 Wheel . | . . . Hover . | . . . Flight . | . . . Utility 7 | 2 1 4 Device 4 | 1 . 3 Storage 2 | 1 . 1 Processor 1 | . 1 . Hackware . | . . . Protection . | . . . Artifact . | . . . Weapon 10 | 2 2 6 Energy Gun 7 | 1 2 4 Energy Cannon . | . . . Ballistic Gun 2 | 1 . 1 Ballistic Cannon . | . . . Launcher . | . . . Special Weapon 1 | . . 1 Impact Weapon . | . . . Slashing Weapon . | . . . Piercing Weapon . | . . . Special Melee Weapon . | . . . Unidentified Prototypes . | . . . Parts Lost 11 | . 2 9 Power 2 | . . 2 Propulsion 2 | . . 2 Utility 2 | . 1 1 Weapon 5 | . 1 4 Highest Loss Streak 4 | . 1 4 To Critical Strikes . | . . . Average Slot Usage (%) 93 | . 99 82 Engine 12 | . 14 10 Treads 13 | . 20 . Leg 11 | . 7 19 Device 12 | . 12 13 Storage 12 | . 14 11 Processor 4 | . 1 11 Energy Gun 13 | . 14 12 Ballistic Gun 10 | . 14 3 Peak Build Rating 14 | 8 8 14 Average Rating 8 | 6 7 11 On Entrance 5 | . 8 8 Naked Turns . | . . . Heaviest Build 19 | 12 13 19 Greatest Support 40 | 40 40 20 Greatest Overweight (x) 6 | . 1 6 Average Overweight (x) . | . . . Largest Inventory Capacity 8 | 8 8 8 Average Capacity 7 | 7 8 8 Most Carried 8 | 8 8 8 Average Carried 7 | 4 7 7 Final Capacity 8 | 8 8 8 Final Carried 8 | 8 8 6 Class Distribution -------------------- 71% | Mutant 28% | Scavenger-Mutant Dominant Class ---------------- Mutant | -10/Materials Scavenger-Mutant | -9/Materials Resources | -11 -10 -9 ----------- Run | Yrd Mat Mat Matter Collected 709 | 278 174 257 Remotely . | . . . Salvage Created 1670 | 164 530 976 Parts 88 | 16 24 48 Haulers Intercepted . | . . . Recyclers Shooed 5 | . 1 4 Parts Field Recycled . | . . . Retrieved Matter . | . . . Parts Self-Destructed . | . . . Prevented . | . . . Kills | -11 -10 -9 ------- Run | Yrd Mat Mat Combat Hostiles Destroyed 28 | . 9 19 Guns 27 | . 9 18 Cannons 1 | . . 1 Classes Destroyed 9 | 3 3 3 Worker 2 | 1 1 . Tunneler 4 | 4 . . Recycler 4 | 1 1 2 Mechanic 1 | . . 1 Operator 1 | . 1 . Watcher 3 | . 2 1 Grunt 22 | . 9 13 Duelist 1 | . . 1 Sentry 5 | . . 5 Best Kill Streak 5 | 2 3 5 Combat Bots Only 5 | . 2 5 Max Kills in Single Turn 2 | 2 1 1 Gunslinging . | . . . Exploded . | . . . Melee . | . . . Uniques/NPCs Destroyed . | . . . Combat | -11 -10 -9 -------- Run | Yrd Mat Mat Hostile Shots Fired 159 | . 42 117 Missed 35 | . 8 27 Damage Taken 1941 | . 533 1408 Core 515 | . 110 405 Absorbed by Shields . | . . . Regen/Repaired (Parts) 24 | . . 24 Core Remaining (%) 78 | 100 56 . Volleys Fired 175 | 8 52 115 Largest 2 | 2 2 2 Hottest 165 | 60 60 165 Shots Fired 292 | 16 105 171 Gun 289 | 16 105 168 Cannon . | . . . Launcher . | . . . Special 3 | . . 3 Kinetic 89 | 8 52 29 Thermal 161 | . 34 127 Explosive . | . . . Electromagnetic 42 | 8 19 15 Robot Hit Streak 17 | 6 9 17 Robot Miss Streak 4 | 4 4 3 Penetration Max . | . . . Secondary Targets 1 | . . 1 Max Gunslinging Chain 1 | . . 1 Shots Hit Robots 203 | 7 74 122 Core Hits 82 | 7 35 40 Critical Kills . | . . . Critical Parts Destroyed . | . . . Critical Strikes 6 | 1 . 5 Burn 4 | . . 4 Corrupt 2 | 1 . 1 Melee Attacks . | . . . Impact . | . . . Slashing . | . . . Piercing . | . . . Sneak Attacks . | . . . Combat Hostiles . | . . . Follow-up Attacks . | . . . Damage Inflicted 2671 | 130 859 1682 Guns 2517 | 96 787 1634 Cannons . | . . . Explosions 106 | 34 72 . Melee . | . . . Ramming . | . . . Kinetic 498 | 28 289 181 Thermal 1752 | 34 387 1331 Explosive . | . . . Electromagnetic 421 | 68 183 170 Impact . | . . . Slashing . | . . . Piercing . | . . . Highest Corruption 2 | . 2 . Average Corruption 2 | . 2 . Corruption Purged . | . . . Corruption Blocked . | . . . Effects 4 | . 4 . Matter Fused 3 | . 3 . Misfires 1 | . 1 . Overload Shots . | . . . Overflow Damage . | . . . Projectiles . | . . . Explosions . | . . . Melee . | . . . Knockbacks . | . . . Impact . | . . . Kinetic . | . . . Secondary . | . . . Self-Inflicted Damage 35 | . 35 . Shots 1 | . 1 . Rammed . | . . . Targets Rammed . | . . . Kicked . | . . . Crushed . | . . . Highest Temperature 452 | 40 112 452 Average Temperature 113 | 16 34 149 Received Heat Transfer 765 | . 291 474 Effects 8 | . . 8 Shutdowns 2 | . . 2 Interference 3 | . . 3 Matter Decay 2 | . . 2 Short Circuit 1 | . . 1 Siege Activations . | . . . Robots Corrupted . | . . . Combat Hostiles . | . . . Parts Fried 1 | . . 1 Impact Corruptions . | . . . Robots Melted . | . . . Combat Hostiles . | . . . Parts Melted 8 | . 3 5 Heat Transferred 4428 | 50 800 3578 Parts Sabotaged . | . . . Parts Stolen . | . . . Parts Stripped . | . . . Power Chain Reactions 2 | 1 1 . Alert | -11 -10 -9 ------- Run | Yrd Mat Mat Peak Influence 314 | 30 264 314 Initial 19 | . 19 1 Average 89 | 11 63 153 Maximum Alert Level 1 | . 1 1 Low Security (%) 82 | 100 94 58 Level 1 17 | . 5 41 Level 2 . | . . . Level 3 . | . . . Level 4 . | . . . Level 5 . | . . . High Security . | . . . Max Security . | . . . Squads Dispatched 3 | . 1 2 Investigation 1 | . . 1 Extermination . | . . . Reinforcement 2 | . 1 1 Assault . | . . . Garrison . | . . . Intercept . | . . . Searches Triggered . | . . . Construction Impeded . | . . . Haulers Reinforced . | . . . Active Scanning Responses . | . . . Cargo Convoy Interrupts . | . . . Stealth | -11 -10 -9 --------- Run | Yrd Mat Mat Distress Signals 2 | . 2 . Communications Jammed . | . . . Distress Signals . | . . . Times Spotted 48 | . 22 26 Peak Tracking Total 6 | . 5 6 Tactical Retreats . | . . . Traps | -11 -10 -9 ------- Run | Yrd Mat Mat Traps Triggered 4 | . 4 . Indirectly . | . . . Trap Hack Attempts . | . . . Triggered . | . . . Disarmed . | . . . Reprogrammed . | . . . Reused . | . . . Traps Extracted . | . . . Installed . | . . . Triggered . | . . . Machines | -11 -10 -9 ---------- Run | Yrd Mat Mat Machines Disabled 1 | . 1 . Max in Single Turn 1 | . 1 . Machines Repaired . | . . . Machines Dismantled . | . . . Machines Sabotaged . | . . . Overloaded Fab Kills . | . . . Hacking | -11 -10 -9 --------- Run | Yrd Mat Mat Machines Accessed 9 | . 6 3 Terminals 4 | . 4 . Fabricators . | . . . Repair Stations 1 | . . 1 Recycling Units 3 | . 2 1 Scanalyzers 1 | . . 1 Garrison Access . | . . . Total Hacks 24 | . 13 11 Successful 12 | . 7 5 Failed 12 | . 6 6 Catastrophic 1 | . . 1 Database Lockouts . | . . . Manual 6 | . 6 . Terminals 9 | . 9 . Fabricators . | . . . Repair Stations 6 | . . 6 Recycling Units 8 | . 4 4 Scanalyzers 1 | . . 1 Garrison Access . | . . . Terminal Hacks 3 | . 3 . Terminal Index 1 | . 1 . Recycling Unit Index 1 | . 1 . Alert Level 1 | . 1 . Fabricator Hacks . | . . . Repair Station Hacks 3 | . . 3 Scan Component 2 | . . 2 Repair 1 | . . 1 Recycling Unit Hacks 4 | . 3 1 Report Inventory 3 | . 2 1 Retrieve Components 1 | . 1 . Scanalyzer 1 | . . 1 Insert Component 1 | . . 1 Garrison Access Hacks . | . . . Unauthorized Hacks 1 | . 1 . Terminals 1 | . 1 . Botnet 1 | . 1 . Fabricators . | . . . Repair Stations . | . . . Recycling Units . | . . . Scanalyzers . | . . . Garrison Access . | . . . Data Cores Recovered . | . . . Used . | . . . Hacking Detections 6 | . 5 1 Full Trace Events . | . . . Feedback Events . | . . . Feedback Blocked . | . . . Robot Schematics Acquired . | . . . Robots Built . | . . . Authchips . | . . . Time . | . . . Total Robot Build Rating . | . . . Part Schematics Acquired . | . . . Parts Built . | . . . Authchips . | . . . Time . | . . . Total Part Build Rating . | . . . Parts Repaired 1 | . . 1 Time 32 | . . 32 Parts Recycled . | . . . Recycled Matter . | . . . Retrieved Matter . | . . . Retrieved Components 5 | . 5 . Parts Scanalyzed . | . . . Part Schematics Acquired . | . . . Parts Damaged . | . . . Bothacking | -11 -10 -9 ------------ Run | Yrd Mat Mat Used RIF Installer . | . . . Robots Hacked . | . . . Non-combat . | . . . Combat . | . . . Robot Hacks Applied . | . . . Relay Couplers Released . | . . . Fabnet Peak Effective % . | . . . Robots Rewired . | . . . Allies Hacked . | . . . Hacks Repelled . | . . . Allies | -11 -10 -9 -------- Run | Yrd Mat Mat Total Allies . | . . . Largest Group . | . . . Highest-Rated Group . | . . . Highest-Rated Ally . | . . . Total Orders . | . . . Ally Attacks . | . . . Total Damage . | . . . Kills . | . . . Allies Corrupted . | . . . Allies Melted . | . . . Intel | -11 -10 -9 ------- Run | Yrd Mat Mat Robot Analysis Total . | . . . Derelict Logs Recovered . | . . . Drone Launches . | . . . Drone Recoveries . | . . . Exploration | -11 -10 -9 ------------- Run | Yrd Mat Mat Turns Passed 2132 | 177 1240 715 Spaces Moved 901 | 88 583 230 Core 12 | 4 . 8 Treads 528 | 84 444 . Legs 361 | . 139 222 Wheels . | . . . Hover . | . . . Flight . | . . . Fastest Speed 50 | 50 120 120 Average Speed 144 | 155 150 125 Slowest Speed 350 | 160 190 350 Overloaded Moves . | . . . Propulsion Burnouts . | . . . Robots Hopped . | . . . Cave-ins Triggered . | . . . Exploration Rate (%) 39 | 5 93 21 Regions Visited 2 Branch Regions . Pre-discovered Areas . | . . . Known Exits Taken 1 | . 1 . Unknown Exits Taken 1 | 1 . . Scrap Searched . | . . . Spaces Dug 1 | . . 1 Terrain Destroyed 7 | 4 2 1 Melee . | . . . Projectile 1 | . . 1 AOE 6 | 4 2 . Terrain Rammed . | . . . Walls Destroyed . | . . . Machines Disabled . | . . . Actions | -11 -10 -9 --------- Run | Yrd Mat Mat Total 1455 | 114 853 488 Wait 296 | 1 195 100 Move 899 | 87 582 230 Hop . | . . . Pick Up 26 | 10 4 12 Fast Attach 15 | 6 7 2 Attach 14 | 1 1 12 Detach 1 | . . 1 Swap 10 | . 3 7 Drop 19 | 1 9 9 Fire 175 | 8 52 115 Melee . | . . . Ram . | . . . Kick . | . . . Crush . | . . . Escape Stasis . | . . . Rewire . | . . . Trap . | . . . Miscellaneous . | . . . Route ------- -11/Scrapyard -10/Materials (discovered 5 exits: *Mat x3 / [*Min x2]) -9/Materials (discovered 1 exit: [*Sto]) History --------- Turn | Location | Event 13 | -11/Scrapyard | Discovered new exit (range 15) 178 | -11/Scrapyard | Entered Materials 178 | -10/Materials | Discovered new exit (range 14) 318 | -10/Materials | Build established: Mutant 434 | -10/Materials | Discovered new exit (range 16) 783 | -10/Materials | Discovered new exit (range 15) 1076 | -10/Materials | Discovered new exit (range 12) 1359 | -10/Materials | Discovered new exit (range 16) 1416 | -10/Materials | Identified exit to Materials 1418 | -10/Materials | Entered another Materials area 1418 | -9/Materials | Evolved 2 slots: Utility x2 1725 | -9/Materials | Lost 4 parts (2n2w) 1890 | -9/Materials | Core integrity fell below 50% 1961 | -9/Materials | Discovered new exit (range 13) 2012 | -9/Materials | Build established: Scavenger-Mutant 2067 | -9/Materials | Repaired Beam Rifle 2121 | -9/Materials | Core integrity fell below 20% 2133 | -9/Materials | Destroyed by L-31 Rogue with Katana Last Messages --------------- Rating: 2 Time: 32 >>Repair Repairing Beam Rifle... ETC: 32 02067_ Repair station completes Beam Rifle repairs. 02067_ Acquired Beam Rifle. 02068_ Connecting with Repair Station... >>Scan(Imp. Terrain Scanner) Scanning Imp. Terrain Scanner... Ready to Repair: Imp. Terrain Scanner Rating: 3 Time: 38 02068_ Dropped Broken Imp. Terrain Scanner. 02070_ Connecting with Repair Station... 02111_ Aluminum Leg melted. 02111_ G-34 Mercenary destroyed. 02123_ Ion Engine destroyed. Map ----- +----------------------------------------------------+ | ???????????????????????????# ^ """ ##?# | | ??????????????????????#???## """ ##?? | | ???????????????????????#+## " #??? | | ?????????????????????# #??? | | ?????????????????????+ % #?#? | | ?????????????????????# ###+######## #??# | | ????????????????????????+## ? # #?#?# #??? | | ????????????????? ??????????# #?# %#?### ###? | | ??????????????????????? ????# ??#!] ""%#?# #? | | ???????????????????? ???????# #?#! Y"%### #? | | ??????????????????? ?#?????## #?# ""%+ #? | | ????????????????????????????# #?# ### #? | | ?????????#????????#?#?# ? ??# #?###### #?# ## | | ??????????############?? ??## #?############+###? | | ???????????# ##?#?#?# ##### # #? | | ???????????? ######## # """ # """ ## | | ????????????? """ # %# """ # """ ## | | ??????????????""""" +=%= +%""" # """ #? | | ??????????????""""" # * # # """ ## | | ??????????????""""" ######## # # """ #? | | ????????????? """ ## ### ########## #? | | ?????????????? ## #?#%###??###?#######? | | ?????????????########## "!" ### #?#?????????#???? | | ???????????#????????#?# "R" #?# #????###?##???#?? | | ?????????????????????## """ ###%###?#?#?#?#?????? | | ?????????????????? ???# @%k#%%% ##????????????? | | ??????????? #######l## % !#????#??#??#??? | | ??????????? < %!% ###?##?##?????? | | ??????????? ########## #???#?#?#?????? | | ?????????????? ???????#????## ##????#???????? | | ????????????????????##?#???########????#???#?#??? | | ????????????? ??????????#?????#?#???#?#????????? | | ???????????????????##?##??#?????????#?#?????????? | | ?????????????????????????#??????????????????????? | | ????????????????????????????????????????????????? | | ?????????????????????????????#??????????????????? | | ????????????????????????????????#??????#????????? | | ??????????????????????????#??????#??????????????? | | ????????????????????????????????#???????????????? | | ????????????????????????????????????????????????? | | ?????????????????????? ?? ??? ?????????????????? | | ????????????????????????????????????????????????? | | ????????????????????????????????????????????????? | | ????????????????????????????????????????????????? | | ????????????????????????????????????????????????? | | ????????????????????????????????????????????????? | | ????????????????????????????????????????????????? | | ????????????????????????????????????????????????? | | ????????????????????????????????????????????????? | | ????????????????????????????????????????????????? | +----------------------------------------------------+ Best States ------------- Heat Dissipation 28 Energy Generation 12 Energy Capacity 265 Matter Stores 300 Matter Capacity 300 Sight Range 16 Terrain Scan Range 16 Terrain Scan Density 10 Evasion (%) 55 Recoil Reduction 2 Item Schematics ----------------- None Robot Schematics ------------------ None Fabricated ------------ Nothing Alien Tech Used ----------------- None Achievements -------------- None Challenges ------------ None Game ------ Seed ElectrostormGodCompressor Manual? 0 Play Time 00:25:31 Cumulative 110.4 hours Start 2025.04.26 @ 04:21:45 End 2025.04.26 @ 04:47:53 Sessions 1 Manual Loads 0 Difficulty Rogue Special Mode None Game No. 80 Rogue 80 Adventurer 0 Explorer 0 Win Type - Total 1 Types 1/0/0/0/0/0/0/0/0 Lore% 9 Gallery% 42 Achievement% 30 Wizard Run 0 Options --------- Layout 1 ASCII 0 Keyboard 0 Movement Mouse Keybinds 0 Fullscreen 1 Font 24/Smallcaps Map View 50x35 Zoom Use 0% Tactical HUD 1 Map Filters NONE Filters NONE Steam 1 RUN: eec4e69c-7679-4ae3-ba9c-3a677598273c